Cogmind - Beta 9.6 @@@ ROGUE MODE // 2020.05.10 @ 01:54:14 Player: Judas Result: Destroyed by L-31 Rogue with Katana Performance ------------- Evolutions (1) 500 Regions Visited (4) 800 Robots Destroyed (32) 160 Value Destroyed (654) 654 Prototype IDs (6) 120 Alien Tech Used (0) 0 Bonus (-113) -113 TOTAL SCORE: 2121 Bonus ------- Follower Combat Kills 163 Friendly Fire -276 Cogmind --------- Core Integrity 0/400 Matter 139/300 Energy 72/100 System Corruption 0% Temperature Cool (268) Movement Core (150) Ox2 Location -9/Storage Parts ------- > --- POWER (1) -------- (None) > --- PROPULSION (3) --- (None) > --- UTILITY (2) ------ Medium Storage Unit > --- WEAPON (3) ------- Mini Grenade Launcher > --- INVENTORY (8) ---- Heavy Ion Engine Improved Hover Unit Improved Medium Laser Light EM Pulse Cannon Heavy Assault Rifle Heavy Hammer Peak State ------------ > --- POWER ------------ Heavy Ion Engine > --- PROPULSION ------- Improved Hover Unit Improved Hover Unit Improved Hover Unit > --- UTILITY ---------- Medium Storage Unit Weight Redist. System > --- WEAPON ----------- Beam Rifle Advanced Beam Cannon Improved Assault Rifle > --- INVENTORY -------- Heavy Ion Engine Aluminum Leg Improved Medium Laser Improved Medium Laser Light EM Pulse Cannon Heavy Assault Rifle Grenade Launcher Heavy Hammer [Rating: 21] Favorites ----------- Power Cooled Ion Engine Engine Cooled Ion Engine Power Core Light Nuclear Core Propulsion Aluminum Leg Treads Light Treads Leg Aluminum Leg Hover Unit Improved Hover Unit Utility Small Storage Unit Device Weight Redist. System Storage Small Storage Unit Weapon Light Assault Rifle Energy Gun Beam Rifle Energy Cannon Advanced Beam Cannon Ballistic Gun Light Assault Rifle Ballistic Cannon Light Cannon Launcher Mini Grenade Launcher Impact Weapon Heavy Hammer Build | -11 -10 -10 -9 -9 ------- Run | Scr Mat Min Mat Sto Slots Evolved 2 | . . . 2 . Power . | . . . . . Propulsion 1 | . . . 1 . Utility . | . . . . . Weapon 1 | . . . 1 . Parts Attached 40 | 1 4 2 8 25 Power 6 | . 1 . 1 4 Engine 5 | . 1 . 1 3 Core 1 | . . . . 1 Reactor . | . . . . . Propulsion 11 | . . 2 3 6 Treads 2 | . . 2 . . Leg 6 | . . . 3 3 Wheel . | . . . . . Hover 3 | . . . . 3 Flight . | . . . . . Utility 4 | 1 . . 1 2 Device 3 | 1 . . 1 1 Storage 1 | . . . . 1 Processor . | . . . . . Hackware . | . . . . . Protection . | . . . . . Artifact . | . . . . . Weapon 19 | . 3 . 3 13 Energy Gun 7 | . . . 2 5 Energy Cannon 1 | . . . . 1 Ballistic Gun 6 | . 3 . 1 2 Ballistic Cannon 2 | . . . . 2 Launcher 2 | . . . . 2 Special Weapon . | . . . . . Impact Weapon 1 | . . . . 1 Slashing Weapon . | . . . . . Piercing Weapon . | . . . . . Special Melee Weapon . | . . . . . Unidentified Prototypes 6 | . . . . 6 Parts Lost 13 | . 5 . . 8 Power 1 | . 1 . . . Propulsion 4 | . 1 . . 3 Utility 2 | . 1 . . 1 Weapon 6 | . 2 . . 4 Highest Loss Streak 7 | . 4 . . 7 Average Slot Usage (%) 92 | . 83 85 88 97 Engine 9 | . 12 14 11 8 Core 1 | . . . . 2 Treads 5 | . . 28 14 . Leg 21 | . 25 . 9 27 Hover 2 | . . . . 4 Device 9 | . 10 . 9 11 Storage 11 | . 14 14 11 11 Energy Gun 13 | . 14 . 12 15 Ballistic Gun 13 | . 6 28 20 11 Ballistic Cannon 2 | . . . . 3 Naked Turns . | . . . . . Heaviest Build 26 | 12 12 10 18 26 Greatest Support 46 | 20 20 40 46 36 Greatest Overweight (x) 1 | . . . . 1 Average Overweight (x) . | . . . . . Largest Inventory Capacity 8 | 6 6 6 6 8 Average Capacity 6 | 6 6 6 6 6 Most Carried 8 | 6 6 6 6 8 Average Carried 5 | 6 5 3 4 6 Final Capacity 8 | 6 6 6 6 8 Final Carried 6 | 6 6 4 6 6 Class Distribution -------------------- 43% | Gunner 27% | Scavenger-Gunner 25% | Mutant 3% | Scavenger-Mutant Dominant Class ---------------- Mutant | -10/Materials Mutant | -10/Mines Gunner | -9/Materials Scavenger-Gunner | -9/Storage Resources | -11 -10 -10 -9 -9 ----------- Run | Scr Mat Min Mat Sto Matter Collected 601 | 210 31 39 78 243 Remotely . | . . . . . Salvage Created 1036 | 107 191 . . 738 Parts 74 | 6 16 . . 52 Haulers Intercepted 2 | . . . . 2 Recyclers Shooed . | . . . . . Parts Field Recycled . | . . . . . Retrieved Matter . | . . . . . Parts Self-Destructed . | . . . . . Prevented . | . . . . . Kills | -11 -10 -10 -9 -9 ------- Run | Scr Mat Min Mat Sto Combat Hostiles Destroyed 22 | . 9 . . 13 Guns 18 | . 9 . . 9 Cannons 2 | . . . . 2 AOE 2 | . . . . 2 Classes Destroyed 9 | 2 3 . . 4 Worker 3 | . 1 . . 2 Tunneler 1 | 1 . . . . Hauler 2 | . . . . 2 Recycler 1 | 1 . . . . Watcher 1 | . . . . 1 Swarmer 10 | . 8 . . 2 Grunt 8 | . 1 . . 7 Duelist 2 | . . . . 2 Sentry 4 | . . . . 4 Best Kill Streak 7 | 2 7 . . 3 Combat Bots Only 4 | . 4 . . 3 Max Kills in Single Turn 2 | 1 2 . . 2 Gunslinging 1 | . 1 . . . Exploded 1 | . . . . 1 Melee . | . . . . . Uniques/NPCs Destroyed . | . . . . . Combat | -11 -10 -10 -9 -9 -------- Run | Scr Mat Min Mat Sto Damage Taken 1965 | . 584 . 43 1338 Core 539 | . 122 . 18 399 Absorbed by Shields . | . . . . . Core Remaining (%) 75 | 100 . 51 . . Volleys Fired 81 | 5 21 1 3 51 Largest 3 | 2 2 2 3 3 Hottest 147 | 80 80 40 96 147 Shots Fired 179 | 10 24 2 9 134 Gun 162 | 10 24 2 9 117 Cannon 14 | . . . . 14 Launcher 3 | . . . . 3 Special . | . . . . . Kinetic 75 | . 11 2 6 56 Thermal 85 | 10 13 . 3 59 Explosive 3 | . . . . 3 Electromagnetic 16 | . . . . 16 Robot Hit Streak 12 | 5 6 . 5 12 Robot Miss Streak 3 | 1 3 . 1 3 Penetration Max . | . . . . . Secondary Targets 1 | . 1 . . . Max Gunslinging Chain 1 | . 1 . . . Shots Hit Robots 116 | 6 17 . 7 86 Core Hits 53 | 3 10 . 2 38 Critical Hits 2 | . . . . 2 Critical Kills 2 | . . . . 2 Critical Parts Destroyed . | . . . . . Melee Attacks 1 | . . . . 1 Impact 1 | . . . . 1 Slashing . | . . . . . Piercing . | . . . . . Sneak Attacks . | . . . . . Combat Hostiles . | . . . . . Follow-up Attacks . | . . . . . Damage Inflicted 1787 | 44 220 15 91 1417 Guns 1397 | 44 220 15 91 1027 Cannons 145 | . . . . 145 Explosions 245 | . . . . 245 Melee . | . . . . . Ramming . | . . . . . Kinetic 583 | . 101 15 48 419 Thermal 827 | 44 119 . 43 621 Explosive 245 | . . . . 245 Electromagnetic 132 | . . . . 132 Impact . | . . . . . Slashing . | . . . . . Piercing . | . . . . . Highest Corruption . | . . . . . Average Corruption . | . . . . . Corruption Purged . | . . . . . Overload Shots . | . . . . . Overflow Damage 11 | . . . . 11 Projectiles 1 | . . . . 1 Explosions 10 | . . . . 10 Melee . | . . . . . Knockbacks . | . . . . . Impact . | . . . . . Kinetic . | . . . . . Secondary . | . . . . . Self-Inflicted Damage 87 | . . . . 87 Shots 2 | . . . . 2 Rammed . | . . . . . Targets Rammed . | . . . . . Kicked . | . . . . . Crushed . | . . . . . Highest Temperature 579 | 54 54 . 104 579 Average Temperature 150 | 23 33 . 55 170 Received Heat Transfer 486 | . 84 . 6 396 Effects 12 | . . . . 12 Shutdowns 2 | . . . . 2 Energy Bleed 2 | . . . . 2 Interference 1 | . . . . 1 Matter Decay 1 | . . . . 1 Short Circuit 2 | . . . . 2 Damage (major) 4 | . . . . 4 Siege Activations . | . . . . . Robots Corrupted . | . . . . . Combat Hostiles . | . . . . . Parts Fried . | . . . . . Impact Corruptions . | . . . . . Robots Melted . | . . . . . Combat Hostiles . | . . . . . Parts Melted 2 | . . . . 2 Heat Transferred 1884 | 100 275 . 111 1398 Parts Sabotaged . | . . . . . Parts Stolen . | . . . . . Parts Stripped . | . . . . . Power Chain Reactions . | . . . . . Missiles Intercepted . | . . . . . Alert | -11 -10 -10 -9 -9 ------- Run | Scr Mat Min Mat Sto Peak Influence 367 | 10 216 84 145 367 Average Influence 170 | 6 93 84 94 239 Maximum Alert Level 1 | . 1 . . 1 Low Security (%) 53 | 100 88 100 100 17 Level 1 46 | . 11 . . 82 Level 2 . | . . . . . Level 3 . | . . . . . Level 4 . | . . . . . Level 5 . | . . . . . High Security . | . . . . . Max Security . | . . . . . Squads Dispatched 8 | . 2 . 1 5 Investigation . | . . . . . Extermination . | . . . . . Reinforcement 5 | . 2 . 1 2 Assault 2 | . . . . 2 Garrison 1 | . . . . 1 Intercept . | . . . . . Construction Impeded . | . . . . . Haulers Reinforced . | . . . . . Stealth | -11 -10 -10 -9 -9 --------- Run | Scr Mat Min Mat Sto Distress Signals 5 | . 3 . . 2 Communications Jammed . | . . . . . Distress Signals . | . . . . . Times Spotted 50 | . 15 . 3 32 Peak Tracking Total 9 | . 7 . 2 9 Tactical Retreats 3 | . . . . 3 Traps | -11 -10 -10 -9 -9 ------- Run | Scr Mat Min Mat Sto Traps Triggered . | . . . . . Indirectly . | . . . . . Trap Hack Attempts . | . . . . . Triggered . | . . . . . Disarmed . | . . . . . Reprogrammed . | . . . . . Reused . | . . . . . Traps Extracted . | . . . . . Installed . | . . . . . Triggered . | . . . . . Machines | -11 -10 -10 -9 -9 ---------- Run | Scr Mat Min Mat Sto Machines Disabled 4 | . . . . 4 Max in Single Turn 1 | . . . . 1 Machines Sabotaged . | . . . . . Garrisons Compromised . | . . . . . Overloaded Fab Kills . | . . . . . Fab Network Shutdowns . | . . . . . Hacking | -11 -10 -10 -9 -9 --------- Run | Scr Mat Min Mat Sto Machines Accessed 1 | . . . 1 . Terminals 1 | . . . 1 . Fabricators . | . . . . . Repair Stations . | . . . . . Recycling Units . | . . . . . Scanalyzers . | . . . . . Garrison Access . | . . . . . Total Hacks 3 | . . . 3 . Successful 3 | . . . 3 . Failed . | . . . . . Catastrophic . | . . . . . Database Lockouts . | . . . . . Manual 2 | . . . 2 . Terminals 3 | . . . 3 . Fabricators . | . . . . . Repair Stations . | . . . . . Recycling Units . | . . . . . Scanalyzers . | . . . . . Garrison Access . | . . . . . Terminal Hacks 2 | . . . 2 . Robot Analysis 2 | . . . 2 . Fabricator Hacks . | . . . . . Repair Station Hacks . | . . . . . Recycling Unit Hacks . | . . . . . Scanalyzer . | . . . . . Garrison Access Hacks . | . . . . . Unauthorized Hacks 1 | . . . 1 . Terminals 1 | . . . 1 . Track 1 | . . . 1 . Fabricators . | . . . . . Repair Stations . | . . . . . Recycling Units . | . . . . . Scanalyzers . | . . . . . Garrison Access . | . . . . . Data Cores Recovered . | . . . . . Used . | . . . . . Hacking Detections 1 | . . . 1 . Full Trace Events . | . . . . . Feedback Events . | . . . . . Feedback Blocked . | . . . . . Robot Schematics Acquired . | . . . . . Robots Built . | . . . . . Matter . | . . . . . Time . | . . . . . Total Robot Build Rating . | . . . . . Part Schematics Acquired . | . . . . . Parts Built . | . . . . . Matter . | . . . . . Time . | . . . . . Total Part Build Rating . | . . . . . Parts Repaired . | . . . . . Time . | . . . . . Parts Recycled . | . . . . . Recycled Matter . | . . . . . Retrieved Matter . | . . . . . Retrieved Components . | . . . . . Parts Scanalyzed . | . . . . . Part Schematics Acquired . | . . . . . Parts Damaged . | . . . . . Bothacking | -11 -10 -10 -9 -9 ------------ Run | Scr Mat Min Mat Sto Used RIF Installer . | . . . . . Robots Hacked . | . . . . . Non-combat . | . . . . . Combat . | . . . . . Robot Hacks Applied . | . . . . . Relay Couplers Released . | . . . . . Robots Rewired . | . . . . . Allies Hacked . | . . . . . Hacks Repelled . | . . . . . Allies | -11 -10 -10 -9 -9 -------- Run | Scr Mat Min Mat Sto Total Allies 5 | . . 3 . 2 Largest Group 3 | . . 3 3 3 Highest-Rated Group 62 | . . 40 40 62 Highest-Rated Ally 31 | . . 16 16 31 Total Orders . | . . . . . Ally Attacks 45 | . . . 16 29 Total Damage 630 | . . . 190 440 Kills 7 | . . . 3 4 Allies Corrupted . | . . . . . Allies Melted . | . . . . . Intel | -11 -10 -10 -9 -9 ------- Run | Scr Mat Min Mat Sto Robot Analysis Total 2 | . . . 2 . Derelict Logs Recovered . | . . . . . Drone Launches . | . . . . . Drone Recoveries . | . . . . . Exploration | -11 -10 -10 -9 -9 ------------- Run | Scr Mat Min Mat Sto Turns Passed 1218 | 53 147 108 237 673 Spaces Moved 746 | 31 80 62 143 430 Core . | . . . . . Treads 141 | . . 62 79 . Legs 516 | 31 80 . 64 341 Wheels . | . . . . . Hover 89 | . . . . 89 Flight . | . . . . . Fastest Speed 52 | 120 120 160 120 52 Average Speed 119 | 120 120 160 142 106 Slowest Speed 160 | 120 120 160 160 120 Overloaded Moves . | . . . . . Propulsion Burnouts . | . . . . . Robots Hopped . | . . . . . Cave-ins Triggered . | . . . . . Exploration Rate (%) 22 | 3 24 19 13 54 Regions Visited 4 Branch Regions 2 Pre-discovered Areas . | . . . . . Known Exits Taken . | . . . . . Unknown Exits Taken 4 | 1 1 1 1 . Scrap Searched 1 | . . 1 . . Spaces Dug . | . . . . . Terrain Destroyed 23 | . . . . 23 Melee . | . . . . . Projectile . | . . . . . AOE 23 | . . . . 23 Actions | -11 -10 -10 -9 -9 --------- Run | Scr Mat Min Mat Sto Total 928 | 36 106 70 170 546 Wait 19 | . . 3 9 7 Move 742 | 30 79 61 142 430 Hop . | . . . . . Pick Up 13 | . 1 1 3 8 Fast Attach 19 | 1 2 . 6 10 Attach 6 | . 1 2 1 2 Detach . | . . . . . Swap 15 | . 1 . 1 13 Drop 32 | . 1 2 5 24 Fire 81 | 5 21 1 3 51 Melee 1 | . . . . 1 Ram . | . . . . . Kick . | . . . . . Crush . | . . . . . Escape Stasis . | . . . . . Rewire . | . . . . . Trap . | . . . . . Miscellaneous . | . . . . . Route ------- -11/Scrapyard -10/Materials -10/Mines -9/Materials -9/Storage History --------- Turn | Location | Event 1 | -11/Scrapyard | Discovered new exit (range 3) 54 | -11/Scrapyard | Entered Materials 161 | -10/Materials | Discovered new exit (range 16) 201 | -10/Materials | Entered Mines 207 | -10/Mines | Lost 4 parts (1p1n1u1w) 273 | -10/Mines | Discovered new exit (range 8) 290 | -10/Mines | Assisted by bots powering up and referring to "LRC-V3" 301 | -10/Mines | Build established: Mutant 309 | -10/Mines | Entered Materials 309 | -9/Materials | Accompanied by 3 allies 309 | -9/Materials | Evolved 2 slots: Propulsion x1, Weapon x1 424 | -9/Materials | Discovered new exit (range 16) 546 | -9/Materials | Entered Storage 546 | -9/Storage | Accompanied by 3 allies 605 | -9/Storage | Build established: Gunner 1143 | -9/Storage | Met a pair of Derelict thieves 1183 | -9/Storage | Garrison activated, responded to threat 1205 | -9/Storage | Core integrity fell below 50% 1217 | -9/Storage | Core integrity fell below 20% 1219 | -9/Storage | Destroyed by L-31 Rogue with Katana Last Messages --------------- 01183_ L-31 Rogue destroyed. 01184_ CU-40C(g) destroyed. 01189_ G-34 Mercenary destroyed. 01190_ Adv. Beam Cannon permanently disabled. 01190_ Overheating: Short circuit. 01192_ Power failure, Hvy. Ion Engine shutdown. 01195_ Dropped Broken Adv. Beam Cannon. 01197_ Overheating: Energy bleed (-42). 01199_ Imp. Hover Unit destroyed. 01199_ K-01 Serf collects debris. 01207_ Hvy. Ion Engine severed. 01209_ Imp. Hover Unit destroyed. 01212_ Beam Rifle destroyed. 01212_ Imp. Medium Laser destroyed. 01215_ L-31 Rogue destroyed. 01215_ Imp. Assault Rifle destroyed. 01215_ Destroyed Imp. Assault Rifle. 01218_ Weight Redist. System destroyed. 01218_ Destroyed Weight Redist. System. 01218_ S-10 Pest destroyed. Map ----- +----------------------------------------------------+ | ????????????????????# T = =% + | | ????????????????????# %[ # "" | | ????????????????????########### ######### #% " | | ??????????????????????????????## ########## #["" | | ???????????????????????????????# # [ # # % | | ???????????????????????####????# # ""*"[# ### | | ???????????????????????#! !?#### # "" =" # #### | | ???????????????????????# !! #T## # """[["=+ + | | ???????????????????????# " + + "[["""*# # | | ???????????????????????#! # # " *"" !# # | | ???????????????????????# ! " # # """" + # | | ???????????????????????#!! # # + #### # | | ???????????????????????####?#### # #??# # | | ???????????????????????????????# ############# # | | ???????????????????????????????# # ## % | | ?????????????????????????????### #!] / % | | ?????????????????????????????#"" # =! ## | | ?????????????????????????????#"Y #% [[ ###+# | | ?????????????????????????????#"" / **![%[= ## | | ?????????????????##########??### # """ "" ## | | ?????????????????# "=[/%*#????# + """ """ ## | | ?????????????????# "%%%!=%###### [ # """ """ ## | | ?????????????????# """""*+ %%=########### | | ?????????????????????"!="s #####+##?????????## | | ???????????????????""" ]gg ### #???????????# [ | | ???????????????????" ]" @ #T #???######??# / | | ???????????????????"!=" l ###" "#???# #??# | | ?????????????????# ""]" !% #?#===#???# #??##T# | | ?????????????????# #?#== #???# ####### | | ?????????????????##### ##?#= #???# + | | ?????????????????????### ###??#== #???# | | ???????????????????????##?????#####???# | | ??????????????????????????????????????# | | ??????????????????????????????????????# | | ??????????????????????????????????????# ^ | | ???????????????????????????????????######### # | | ???????????????????????????????????#% + | | ???????????????????????????????????# ]!! # # | | ???????????????????????????????????# =]! ##### | | ???????????????????????????????????# =%]![= #???? | | ???????????????????????????????????###[#######???? | | ?????????????????????????????????????###?????????? | | | | | | | | | | | | | | | | | +----------------------------------------------------+ Best States ------------- Heat Dissipation 28 Energy Generation 14 Energy Capacity 280 Matter Stores 300 Matter Capacity 300 Sight Range 16 Terrain Scan Range 16 Terrain Scan Density 10 Additional Mass Support 6 Evasion (%) 54 Recoil Reduction 2 Item Schematics ----------------- None Robot Schematics ------------------ None Fabricated ------------ Nothing Alien Tech Used ----------------- None Achievements -------------- None Challenges ------------ None Game ------ Seed LinearAssemblySegregator Manual? 0 Play Time 00:16:11 Cumulative 60.8 hours Start 2020.05.10 @ 01:38:17 End 2020.05.10 @ 01:54:14 Sessions 1 Manual Loads 0 Difficulty Rogue Special Mode None Game No. 110 Rogue 110 Adventurer 0 Explorer 0 Win Type - Total 0 Types 0/0/0/0/0/0/0 Lore% 32 Gallery% 43 Achievement% 32 Wizard Run 0 Options --------- ASCII 0 Keyboard 0 Movement Mouse Keybinds 0 Fullscreen 2 Font 18/SmallcapsGlow Map View 76x50 Tactical HUD 1 Map Filters NONE Filters NONE Steam X RUN: c3b6bd8b-13aa-48cf-9911-500c12ec2822